bitfinex-derivatives/quotes_BTCF0:USTF0_20250608
["timestamp","ask_amount","ask_price","bid_price","bid_amount"]
[1749372758122,0.19349498,105520.0,105510.0,1.13299593]
[1749372758532,0.19349498,105520.0,105510.0,1.01541573]
[1749372758729,0.19349498,105520.0,105510.0,1.13299593]
[1749372760034,0.19349498,105520.0,105510.0,0.77219593]
[1749372760335,0.19349498,105520.0,105510.0,1.13299593]
[1749372762136,0.19349498,105520.0,105510.0,0.77219593]
[1749372762338,0.19349498,105520.0,105510.0,1.13299593]
[1749372768141,0.19349498,105520.0,105510.0,0.77219593]
[1749372768345,0.19349498,105520.0,105510.0,1.13299593]
[1749372772144,0.19349498,105520.0,105510.0,0.77219593]
[1749372772338,0.19349498,105520.0,105510.0,1.13299593]
[1749372776745,0.19349498,105520.0,105510.0,0.77219593]
[1749372776948,0.19349498,105520.0,105510.0,1.13299593]
[1749372787056,0.19349498,105520.0,105510.0,0.77219593]
[1749372787355,0.19349498,105520.0,105510.0,1.13299593]
[1749372789181,0.19349498,105520.0,105510.0,1.10341052]
[1749372792175,0.19349498,105520.0,105510.0,0.74261052]
[1749372792374,0.19349498,105520.0,105510.0,1.10341052]
[1749372795078,0.19349498,105520.0,105510.0,0.74261052]
[1749372795271,0.19349498,105520.0,105510.0,1.10341052]
[1749372795779,0.19349498,105520.0,105510.0,0.74261052]
[1749372796079,0.19349498,105520.0,105510.0,1.10341052]
[1749372797881,0.1894462,105520.0,105510.0,1.10341052]
[1749372799081,0.19349498,105520.0,105510.0,1.10341052]
[1749372801185,0.19349498,105520.0,105510.0,0.74261052]
[1749372801482,0.19349498,105520.0,105510.0,1.10341052]
[1749372803283,0.19349498,105520.0,105510.0,1.13299593]
[1749372815592,0.19349498,105520.0,105510.0,0.77219593]
[1749372815789,0.19349498,105520.0,105510.0,1.13299593]
[1749372820591,0.19349498,105520.0,105510.0,0.77219593]
[1749372820892,0.19349498,105520.0,105510.0,1.13299593]
[1749372821884,0.19349498,105520.0,105510.0,0.77219593]
[1749372822189,0.19349498,105520.0,105510.0,1.13299593]
[1749372824098,0.19349498,105520.0,105510.0,0.77219593]
[1749372824396,0.19349498,105520.0,105510.0,1.13299593]
[1749372824695,0.19349498,105520.0,105510.0,0.77219593]
[1749372824897,0.19349498,105520.0,105510.0,1.13299593]
[1749372826696,0.19349498,105520.0,105510.0,0.77219593]
[1749372826897,0.19349498,105520.0,105510.0,1.13299593]
[1749372829997,0.19349498,105520.0,105510.0,0.77219593]
[1749372830199,0.19349498,105520.0,105510.0,1.13299593]
[1749372831799,0.19349498,105520.0,105510.0,1.1314184]
[1749372835398,0.19349498,105520.0,105510.0,1.0138382]
[1749372835600,0.19349498,105520.0,105510.0,1.1314184]
[1749372837510,0.19349498,105520.0,105510.0,1.08450523]
[1749372837699,0.31107518,105520.0,105510.0,1.13141933]
[1749372838210,0.31107518,105520.0,105510.0,0.77061933]
[1749372838403,0.31107518,105520.0,105510.0,1.13141933]
[1749372840208,0.31107518,105520.0,105510.0,0.77061933]
[1749372840508,0.31107518,105520.0,105510.0,1.13141933]
[1749372841108,0.31107518,105520.0,105510.0,0.77061933]
[1749372841406,0.31107518,105520.0,105510.0,1.13141933]
[1749372843209,0.31107518,105520.0,105510.0,1.10183999]
[1749372844109,0.31107518,105520.0,105510.0,0.74103999]
[1749372844312,0.31107518,105520.0,105510.0,1.10183999]
[1749372844906,0.31107518,105520.0,105510.0,0.98425979]
[1749372845113,0.31107518,105520.0,105510.0,1.10183999]
[1749372845705,0.34187518,105520.0,105510.0,1.10183999]
[1749372845910,0.34187518,105520.0,105510.0,0.45697579]
[1749372846209,0.98415415,105520.0,105510.0,0.2209141]
[1749372846404,0.98415415,105520.0,105510.0,0.19899525]
[1749372846608,1.34495415,105520.0,105510.0,0.19899525]
[1749372847110,1.34495415,105520.0,105510.0,0.2434076]
[1749372847311,1.34495415,105520.0,105510.0,0.15454121]
[1749372847502,1.34795415,105520.0,105510.0,0.15254121]
[1749372847704,1.34795415,105520.0,105510.0,0.15054121]
[1749372847903,1.35095415,105520.0,105510.0,0.15054121]
[1749372848308,0.99015415,105520.0,105510.0,0.15054121]
[1749372848608,1.35095415,105520.0,105510.0,0.15054121]
[1749372852212,1.04095415,105520.0,105510.0,0.15054121]
[1749372853211,1.04095415,105520.0,105510.0,0.19499525]
[1749372860920,0.80579375,105520.0,105510.0,0.19499525]
[1749372861119,1.04095415,105520.0,105510.0,0.19499525]
[1749372867224,0.92337395,105520.0,105510.0,0.19499525]
[1749372870220,0.56257395,105520.0,105510.0,0.19499525]
[1749372870416,0.92337395,105520.0,105510.0,0.19499525]
[1749372875419,0.92337395,105520.0,105510.0,0.13578049]
[1749372875928,1.02149395,105520.0,105510.0,0.13578049]
[1749372883231,1.02149395,105520.0,105510.0,0.23946478]
[1749372893151,1.02149395,105520.0,105510.0,0.13578049]
[1749372903150,1.02149395,105520.0,105510.0,0.16539559]
[1749372903957,0.66069395,105520.0,105510.0,0.16539559]
[1749372904158,1.02149395,105520.0,105510.0,0.16539559]
[1749372907360,1.02149395,105520.0,105510.0,0.16573433]
[1749372909364,1.02149395,105520.0,105510.0,0.1953788]
[1749372909365,1.36907415,105520.0,105510.0,0.1953788]
[1749372909554,1.72987415,105520.0,105510.0,0.1953788]
[1749372910360,1.72987415,105520.0,105510.0,0.10650427]
[1749372911266,1.72987415,105520.0,105510.0,0.15092058]
[1749372914569,1.00827415,105520.0,105510.0,0.15092058]
[1749372914867,1.72987415,105520.0,105510.0,0.15092058]
[1749372917662,1.00827415,105520.0,105510.0,0.15092058]
[1749372917868,1.72987415,105520.0,105510.0,0.15092058]
[1749372922674,1.00827415,105520.0,105510.0,0.15092058]
[1749372922871,1.72987415,105520.0,105510.0,0.1505067]
[1749372923274,1.72987415,105520.0,105510.0,0.09125527]
[1749372926878,1.49987415,105520.0,105510.0,0.09125527]
[1749372927081,1.39770537,105520.0,105510.0,0.1505067]
[1749372927282,1.68914497,105520.0,105510.0,0.1830067]
[1749372927476,1.80672517,105520.0,105510.0,0.1830067]
[1749372927678,1.80672517,105520.0,105510.0,0.2132067]
[1749372928975,1.08512517,105520.0,105510.0,0.2132067]
[1749372929383,1.80672517,105520.0,105510.0,0.2132067]
[1749372930083,1.81077395,105520.0,105510.0,0.2132067]
[1749372931083,1.08512517,105520.0,105510.0,0.2132067]
[1749372931287,1.80672517,105520.0,105510.0,0.2132067]
[1749372933384,1.80672517,105520.0,105510.0,0.10956519]
[1749372933776,1.37820517,105520.0,105510.0,0.22714539]
[1749372933984,1.71082517,105520.0,105510.0,0.22714539]
[1749372934178,1.71082517,105520.0,105510.0,0.25804539]
[1749372934375,0.1894669,105510.0,105490.0,0.20749779]
[1749372934582,1.6728453,105500.0,105490.0,0.00014177]
[1749372934887,2.33502611,105500.0,105490.0,0.00014177]
[1749372935073,2.36702611,105500.0,105490.0,0.00014177]
[1749372935987,2.45569396,105500.0,105490.0,0.00014177]
[1749372937589,2.45569396,105500.0,105490.0,0.00114177]
[1749372938089,2.45569396,105500.0,105490.0,0.00014177]
[1749372938298,2.53242124,105500.0,105490.0,0.00014177]
[1749372940301,2.44375339,105500.0,105490.0,0.00014177]
[1749372944202,2.20859299,105500.0,105490.0,0.00014177]
[1749372944398,2.29417319,105500.0,105490.0,0.11772197]
[1749372944597,2.29417319,105500.0,105490.0,0.21282197]
[1749372944799,2.23361319,105500.0,105490.0,0.21282197]
[1749372944995,1.70717319,105500.0,105490.0,0.21282197]
[1749372945195,2.21111319,105500.0,105490.0,0.21282197]
[1749372945402,2.21091319,105500.0,105490.0,0.21282197]
[1749372946208,2.21111319,105500.0,105490.0,0.21282197]
[1749372946409,2.21111319,105500.0,105490.0,0.25848929]
[1749372951209,1.73273299,105500.0,105490.0,0.25848929]
[1749372951406,1.85031319,105500.0,105490.0,0.25848929]
[1749372954712,1.88311319,105500.0,105490.0,0.25848929]
[1749372955311,1.20609299,105500.0,105490.0,0.44799209]
[1749372955513,1.20589299,105500.0,105490.0,0.44799209]
[1749372955703,1.20609299,105500.0,105490.0,0.44799209]
[1749372955899,1.73253299,105500.0,105490.0,0.44799209]
[1749372956104,1.73273299,105500.0,105490.0,0.4479865]
[1749372959819,1.37193299,105500.0,105490.0,0.4479865]
[1749372960024,1.73273299,105500.0,105490.0,0.4479865]
[1749372960213,1.73273299,105500.0,105490.0,0.2584837]
[1749372960413,1.85031319,105500.0,105490.0,0.53686103]
[1749372962617,1.48951319,105500.0,105490.0,0.53686103]
[1749372962819,1.85031319,105500.0,105490.0,0.53686103]
[1749372964019,1.85031319,105500.0,105490.0,0.34735823]
[1749372964222,1.73273299,105500.0,105490.0,0.34735823]
[1749372964432,1.73273299,105500.0,105490.0,0.4065489]
[1749372964922,1.73273299,105500.0,105490.0,0.5960518]
[1749372968823,1.73678177,105500.0,105490.0,0.5960518]
[1749372970022,1.73273299,105500.0,105490.0,0.5960518]
[1749372973231,1.73273299,105500.0,105490.0,0.4479866]
[1749372973824,1.73273299,105500.0,105490.0,0.2584837]
[1749372974017,1.73273299,105500.0,105490.0,0.4479865]
[1749372974729,1.37193299,105500.0,105490.0,0.4479865]
[1749372975130,1.73273299,105500.0,105490.0,0.4479865]
[1749372978933,1.73273299,105500.0,105490.0,0.2584837]
[1749372979435,1.73273299,105500.0,105490.0,0.4479865]
[1749372979626,1.73273299,105500.0,105490.0,0.2277837]
[1749372979931,1.73253299,105500.0,105490.0,0.2277837]
[1749372980132,1.76593299,105500.0,105490.0,0.2277837]
[1749372980335,1.79823299,105500.0,105490.0,0.2277837]
[1749372982435,1.79823299,105500.0,105490.0,0.28697437]
[1749372983236,1.79823299,105500.0,105490.0,0.31665823]
[1749372985037,1.79823299,105500.0,105490.0,0.50616113]
[1749372988039,1.43743299,105500.0,105490.0,0.50616113]
[1749372988240,1.79823299,105500.0,105490.0,0.50616113]
[1749372989034,1.79823299,105500.0,105490.0,0.31665823]
[1749372991442,1.79823299,105500.0,105490.0,0.50616233]
[1749372991742,0.71159299,105500.0,105490.0,0.50616233]
[1749372991937,1.20569299,105500.0,105490.0,0.47386233]
[1749372992138,1.20569299,105500.0,105490.0,0.53756233]
[1749372992139,1.20589299,105500.0,105490.0,0.53756233]
[1749372992437,1.54105339,105500.0,105490.0,0.13467803]
[1749372992637,1.48837319,105500.0,105490.0,0.25225823]
[1749372993239,1.48837319,105500.0,105490.0,0.37073972]
[1749372995437,1.48837319,105500.0,105490.0,0.25225823]
[1749373003351,1.12757319,105500.0,105490.0,0.25225823]
[1749373003649,1.48837319,105500.0,105490.0,0.25225823]
[1749373003850,1.48837319,105500.0,105490.0,0.37073972]
[1749373005450,1.12757319,105500.0,105490.0,0.37073972]
[1749373005643,1.48837319,105500.0,105490.0,0.25225823]
[1749373005845,1.48837319,105500.0,105490.0,0.37073972]
[1749373006143,1.48837319,105500.0,105490.0,0.25225823]
[1749373006754,1.85837319,105500.0,105490.0,0.25225823]
[1749373006947,1.48837319,105500.0,105490.0,0.25225823]
[1749373007549,1.82837319,105500.0,105490.0,0.25225823]
[1749373007853,1.48837319,105500.0,105490.0,0.25225823]
[1749373011843,1.48837319,105500.0,105490.0,0.37073972]
[1749373012754,1.12757319,105500.0,105490.0,0.37073972]
[1749373012956,1.48837319,105500.0,105490.0,0.37073972]
[1749373013460,1.48837319,105500.0,105490.0,0.35593985]
[1749373021464,1.48817319,105500.0,105490.0,0.35593985]
[1749373021665,1.48817319,105500.0,105490.0,0.31150487]
[1749373023360,1.48817319,105500.0,105490.0,0.25225823]
[1749373026968,1.12737319,105500.0,105490.0,0.25225823]
[1749373027167,1.48817319,105500.0,105490.0,0.25225823]
[1749373027769,0.84399299,105500.0,105490.0,0.25225823]
[1749373027962,0.81099299,105500.0,105490.0,0.25225823]
[1749373028169,0.81099299,105500.0,105490.0,0.23007803]
[1749373028362,0.81099299,105500.0,105490.0,0.34765823]
[1749373028571,0.92857319,105500.0,105490.0,0.53716203]
[1749373028765,0.92857319,105500.0,105490.0,0.54121081]
[1749373030366,0.92857319,105500.0,105490.0,0.6596923]
[1749373030764,0.92857319,105500.0,105490.0,0.57081777]
[1749373030971,0.81099299,105500.0,105490.0,0.57081777]
[1749373032769,0.81099299,105500.0,105490.0,0.56676899]
[1749373033377,0.81099299,105500.0,105490.0,0.65565307]
[1749373033880,0.81099299,105500.0,105490.0,0.65970185]
[1749373037080,0.91087299,105500.0,105490.0,0.65970185]
[1749373037381,0.91087299,105500.0,105490.0,0.47019805]
[1749373037581,0.91087299,105500.0,105490.0,0.65970185]
[1749373038280,1.02845319,105500.0,105490.0,0.65970185]
[1749373042501,1.02845319,105500.0,105490.0,0.47019805]
[1749373043397,1.02845319,105500.0,105490.0,0.35171656]
[1749373047500,0.99525319,105500.0,105490.0,0.28901656]
[1749373047704,0.96335319,105500.0,105490.0,0.25631656]
[1749373048402,0.96335319,105500.0,105490.0,0.13873636]
[1749373048597,0.96335319,105500.0,105490.0,0.25631656]
[1749373049100,0.96335319,105500.0,105490.0,0.25226778]
[1749373049798,1.08093339,105500.0,105490.0,0.13468758]
[1749373050004,0.96335319,105500.0,105490.0,0.31152154]
[1749373052105,0.96335319,105500.0,105490.0,0.31557032]
[1749373053399,1.05213743,105500.0,105490.0,0.27112248]
[1749373053907,1.41293743,105500.0,105490.0,0.27112248]
[1749373055206,1.41293743,105500.0,105490.0,0.2670737]
[1749373055607,1.32435884,105500.0,105490.0,0.2670737]
[1749373056300,1.32435884,105500.0,105490.0,0.27112248]
[1749373057807,0.60275884,105500.0,105490.0,0.27112248]
[1749373058009,1.32435884,105500.0,105490.0,0.27112248]
[1749373060618,1.41314506,105500.0,105490.0,0.27112248]
[1749373062314,1.41314506,105500.0,105490.0,0.2670737]
[1749373063310,1.32435884,105500.0,105490.0,0.25226778]
[1749373068314,0.96355884,105500.0,105490.0,0.25226778]
[1749373068913,0.60275884,105500.0,105490.0,0.25226778]
[1749373069212,0.96355884,105500.0,105490.0,0.25226778]
[1749373075010,0.60275884,105500.0,105490.0,0.25226778]
[1749373075217,0.96355884,105500.0,105490.0,0.25226778]
[1749373075722,0.60275884,105500.0,105490.0,0.25226778]
[1749373075910,0.96355884,105500.0,105490.0,0.25226778]
[1749373077511,0.99485884,105500.0,105490.0,0.25226778]
[1749373080216,0.99485884,105500.0,105490.0,0.13468758]
[1749373080424,1.11243904,105500.0,105490.0,0.13468758]
[1749373081120,0.99485884,105500.0,105490.0,0.13468758]
[1749373081321,1.11243904,105500.0,105490.0,0.13468758]
[1749373084327,1.11243904,105500.0,105490.0,0.19393878]
[1749373087423,1.46573904,105500.0,105490.0,0.19393878]
[1749373087724,1.49583904,105500.0,105490.0,0.19393878]
[1749373088024,1.55583904,105500.0,105490.0,0.19393878]
[1749373093432,1.55583904,105500.0,105490.0,0.09022509]
[1749373093834,1.55583904,105500.0,105490.0,0.09427387]
[1749373095934,1.55583904,105500.0,105490.0,0.09022509]
[1749373096729,1.55583904,105500.0,105490.0,0.0458035]
[1749373096931,1.55583904,105500.0,105490.0,0.04985228]
[1749373099335,1.86300324,105500.0,105480.0,0.19255687]
[1749373099536,0.1895229,105480.0,105470.0,0.0572512]
[1749373099836,1.21270284,105480.0,105470.0,0.0572512]
[1749373100026,1.24440284,105480.0,105470.0,0.0572512]
[1749373100228,0.1895397,105470.0,105460.0,0.48922188]
[1749373100428,0.6679199,105470.0,105460.0,0.82922188]
[1749373101540,0.67719004,105470.0,105460.0,0.82922188]
[1749373102130,0.67719004,105470.0,105460.0,0.63966428]
[1749373102637,0.67719004,105470.0,105460.0,0.64166428]
[1749373102837,0.67719004,105470.0,105460.0,0.64466428]
[1749373103336,0.67719004,105470.0,105460.0,0.67426169]
[1749373104436,1.10819004,105470.0,105460.0,0.67426169]
[1749373104936,1.22819004,105470.0,105460.0,0.55668149]
[1749373105327,1.22819004,105470.0,105460.0,0.2469407]
[1749373106339,1.26019004,105470.0,105460.0,0.2469407]
[1749373106737,1.50019004,105470.0,105460.0,0.1537407]
[1749373106938,1.61777024,105470.0,105460.0,0.005]
[1749373107136,0.1895577,105460.0,105450.0,0.08888247]
[1749373107335,1.19567753,105460.0,105450.0,0.30408247]
[1749373107542,1.19567753,105460.0,105450.0,0.33608247]
[1749373108134,1.19567753,105460.0,105450.0,0.24734177]
[1749373108333,1.54567753,105460.0,105450.0,0.24734177]
[1749373109238,1.54567753,105460.0,105450.0,0.24934177]
[1749373109436,1.54567753,105460.0,105450.0,0.09934177]
[1749373110948,1.66325773,105460.0,105450.0,0.00214177]
[1749373111151,0.1895754,105450.0,105440.0,0.0887407]
[1749373111354,0.1895934,105440.0,105430.0,0.30302219]
[1749373111555,0.78602792,105440.0,105430.0,0.51028629]
[1749373111959,0.78602792,105440.0,105430.0,0.69989769]
[1749373112157,0.78602792,105440.0,105430.0,0.51028629]
[1749373113052,0.78602792,105440.0,105430.0,0.51428629]
[1749373115358,0.78602792,105440.0,105430.0,0.51228629]
[1749373115660,0.78602792,105440.0,105430.0,0.51028629]
[1749373116060,0.8628552,105440.0,105430.0,0.51028629]
[1749373122655,1.2940152,105440.0,105430.0,0.51028629]
[1749373122963,0.7636952,105440.0,105430.0,0.51028629]
[1749373123165,1.2940152,105440.0,105430.0,0.51028629]
[1749373129068,0.7636952,105440.0,105430.0,0.51028629]
[1749373129370,1.2940552,105440.0,105430.0,0.51433507]
[1749373129868,1.2940552,105440.0,105430.0,0.63281656]
[1749373130166,1.2940552,105440.0,105430.0,0.54407586]
[1749373132374,1.2940552,105440.0,105430.0,0.54002708]
[1749373133366,1.2940552,105440.0,105430.0,0.54407586]
[1749373134767,1.2940552,105440.0,105430.0,0.73368726]
[1749373136176,1.2940552,105440.0,105430.0,0.88174809]
[1749373137176,1.2940552,105440.0,105430.0,0.7632666]
[1749373137477,1.3257552,105440.0,105430.0,0.7632666]
[1749373138370,0.9649552,105440.0,105430.0,0.7632666]
[1749373138570,1.3257552,105440.0,105430.0,0.7632666]
[1749373138778,0.7953952,105440.0,105430.0,0.7632666]
[1749373138966,1.3255152,105440.0,105430.0,0.7632666]
[1749373140577,1.3255152,105440.0,105430.0,0.71752101]
[1749373140782,1.3255152,105440.0,105430.0,0.76483747]
[1749373141482,1.3255152,105440.0,105430.0,0.76078869]
[1749373143283,1.3255152,105440.0,105430.0,0.73127374]
[1749373144077,0.847055,105440.0,105430.0,0.84885394]
[1749373144276,0.9329352,105440.0,105430.0,0.99691477]
[1749373144475,0.4030952,105440.0,105430.0,0.99691477]
[1749373144681,0.4030952,105440.0,105430.0,1.00096355]
[1749373144882,0.4028952,105440.0,105430.0,0.88241767]
[1749373145083,0.4030952,105440.0,105430.0,0.88241767]
[1749373147884,0.4028952,105440.0,105430.0,0.88241767]
[1749373148087,0.4030952,105440.0,105430.0,1.00096179]
[1749373149783,0.4030952,105440.0,105430.0,1.36176179]
[1749373150087,0.4030952,105440.0,105430.0,1.24321767]
[1749373152592,0.32626792,105440.0,105430.0,1.24321767]
[1749373152888,0.32606792,105440.0,105430.0,1.24321767]
[1749373153089,0.32626792,105440.0,105430.0,1.24321767]
[1749373157487,0.32626792,105440.0,105430.0,1.09515684]
[1749373158985,0.32626792,105440.0,105430.0,1.24321767]
[1749373159389,0.32626792,105440.0,105430.0,1.67373767]
[1749373159886,0.20868772,105440.0,105430.0,1.67373767]
[1749373160293,0.20868772,105440.0,105430.0,1.88103198]
[1749373160594,0.20868762,105440.0,105430.0,1.88107435]
[1749373160789,0.20868762,105440.0,105430.0,1.73297115]
[1749373161191,0.32626782,105440.0,105430.0,1.73297115]
[1749373161586,0.32626782,105440.0,105430.0,1.88106126]
[1749373162992,0.32626782,105440.0,105430.0,1.52026126]
[1749373163293,0.32626782,105440.0,105430.0,2.24186126]
[1749373168393,0.32626782,105440.0,105430.0,2.09377115]
[1749373169197,0.32626782,105440.0,105430.0,2.24184026]
[1749373169591,0.32626782,105440.0,105430.0,2.03454595]
[1749373169792,0.32626782,105440.0,105430.0,1.91696575]
[1749373170097,0.32626782,105440.0,105430.0,2.03454595]
[1749373172495,0.32626782,105440.0,105430.0,2.16658573]
[1749373172799,0.32626782,105440.0,105430.0,2.00493809]
[1749373172999,0.32626782,105440.0,105430.0,1.90005536]
[1749373173299,0.32626782,105440.0,105430.0,1.88647684]
[1749373174098,0.32626782,105440.0,105430.0,1.90005821]
[1749373174694,0.32626782,105440.0,105430.0,1.90005749]
[1749373175293,0.32626782,105440.0,105430.0,2.00495347]
[1749373175492,0.32626782,105440.0,105430.0,2.0185359]
[1749373175697,0.32626782,105440.0,105430.0,2.01853591]
[1749373176200,0.32626782,105440.0,105430.0,1.88647684]
[1749373176401,0.32626782,105440.0,105430.0,1.90005928]
[1749373176802,0.32626782,105440.0,105430.0,1.88647684]
[1749373177001,0.32626782,105440.0,105430.0,1.90005927]
[1749373177301,0.32626782,105440.0,105430.0,1.88647684]
[1749373177501,0.32626782,105440.0,105430.0,1.90005928]
[1749373178300,0.32626782,105440.0,105430.0,1.90005927]
[1749373178700,0.32626782,105440.0,105430.0,1.88647684]
[1749373179201,0.32626782,105440.0,105430.0,1.90005928]
[1749373179701,0.32626782,105440.0,105430.0,1.88647684]
[1749373180095,0.32626782,105440.0,105430.0,1.8960105]
[1749373180300,0.32626782,105440.0,105430.0,1.88242806]
[1749373180503,0.32626782,105440.0,105430.0,1.8960105]
[1749373180905,0.32626782,105440.0,105430.0,1.1744105]
[1749373181105,0.32626782,105440.0,105430.0,1.53926742]
[1749373181305,0.32626782,105440.0,105430.0,1.52567684]
[1749373181505,0.32626782,105440.0,105430.0,1.67374595]
[1749373181703,0.32626782,105440.0,105430.0,1.68733665]
[1749373181899,0.32626782,105440.0,105430.0,1.31294595]
[1749373182210,0.32626782,105440.0,105430.0,1.68733662]
[1749373182408,0.32626782,105440.0,105430.0,1.67374595]
[1749373183511,0.32626782,105440.0,105430.0,1.73297115]
[1749373184418,0.32626782,105440.0,105430.0,1.74657111]
[1749373184607,0.32626782,105440.0,105430.0,1.73297115]
[1749373184802,0.32626782,105440.0,105430.0,1.30245115]
[1749373185009,0.35816782,105440.0,105430.0,1.73261115]
[1749373185208,0.38936782,105440.0,105430.0,1.72856237]
[1749373185412,0.38936782,105440.0,105430.0,1.87671263]
[1749373186112,0.38936782,105440.0,105430.0,1.88076141]
[1749373186816,0.38936782,105440.0,105430.0,1.51996141]
[1749373187020,0.38936782,105440.0,105430.0,1.88076141]
[1749373187223,0.38936782,105440.0,105430.0,1.73261115]
[1749373188623,0.38936782,105440.0,105430.0,1.61503095]
[1749373188919,0.38936782,105440.0,105430.0,1.30245115]
[1749373189118,0.38936782,105440.0,105430.0,1.73281115]
[1749373189321,0.38936782,105440.0,105430.0,1.72876237]
[1749373189726,0.38936782,105440.0,105430.0,1.29840237]
[1749373190026,0.38936782,105440.0,105430.0,1.72876237]
[1749373191227,0.3704735,105440.0,105430.0,1.72876237]
[1749373191427,0.3702735,105440.0,105430.0,1.72876237]
[1749373192726,0.3702735,105440.0,105430.0,1.29840237]
[1749373192915,0.3702735,105440.0,105430.0,1.72868237]
[1749373193119,0.3702735,105440.0,105430.0,1.72864237]
[1749373193320,0.3702735,105440.0,105430.0,1.87681655]
[1749373193521,0.3702735,105440.0,105430.0,1.23928224]
[1749373193732,0.3702735,105440.0,105430.0,1.66952224]
[1749373194228,0.3390735,105440.0,105430.0,1.66952224]
[1749373195829,0.3390735,105440.0,105430.0,1.23928224]
[1749373196031,0.3390735,105440.0,105430.0,1.66944224]
[1749373196330,0.3390735,105440.0,105430.0,1.30864224]
[1749373196527,0.3390735,105440.0,105430.0,1.66944224]
[1749373197128,0.2214933,105440.0,105430.0,1.66944224]
[1749373197317,0.3390735,105440.0,105430.0,1.66944224]
[1749373198128,0.2214933,105440.0,105430.0,1.66944224]
[1749373198321,0.3390735,105440.0,105430.0,1.66944224]
[1749373200830,0.2214933,105440.0,105430.0,1.66944224]
[1749373201031,0.3390735,105440.0,105430.0,1.66944224]
[1749373201630,0.3071735,105440.0,105430.0,1.66944224]
[1749373203428,0.3071735,105440.0,105430.0,1.52126806]
[1749373203636,0.3071735,105440.0,105430.0,1.87673296]
[1749373203825,0.3071735,105440.0,105430.0,1.72856237]
[1749373204132,0.1895933,105440.0,105430.0,1.72856237]
[1749373205433,0.1895933,105440.0,105430.0,1.52126806]
[1749373205635,0.1895933,105440.0,105430.0,1.53486808]
[1749373206032,0.1895933,105440.0,105430.0,1.52126806]
[1749373206335,0.1895933,105440.0,105430.0,1.53486808]
[1749373206526,0.1895933,105440.0,105430.0,1.53891686]
[1749373206727,0.1895933,105440.0,105430.0,1.53891687]
[1749373206933,0.1895933,105440.0,105430.0,1.52531684]
[1749373207123,0.1895933,105440.0,105430.0,1.53891688]
[1749373207432,0.1895933,105440.0,105430.0,1.53891686]
[1749373207633,0.1895933,105440.0,105430.0,1.53486811]
[1749373207828,0.1895933,105440.0,105430.0,1.52126806]
[1749373208135,0.1895933,105440.0,105430.0,1.17406812]
[1749373208330,0.1895933,105440.0,105430.0,1.52126806]
[1749373208526,0.1895933,105440.0,105430.0,1.66943342]
[1749373211832,0.3071735,105440.0,105430.0,1.66943342]
[1749373212835,0.3071735,105440.0,105430.0,1.52126806]
[1749373213138,0.3071735,105440.0,105430.0,1.72856237]
[1749373213339,0.1895933,105440.0,105430.0,1.72856237]
[1749373215738,0.10066857,105440.0,105430.0,1.72856237]
[1749373219541,0.10066857,105440.0,105430.0,1.29840237]
[1749373219739,0.10066857,105440.0,105430.0,1.72860237]
[1749373221041,0.10066857,105440.0,105430.0,1.36780237]
[1749373221245,0.10066857,105440.0,105430.0,1.61102217]
[1749373221539,0.10066857,105440.0,105430.0,1.72860237]
[1749373224042,0.10066857,105440.0,105430.0,1.36780237]
[1749373224242,0.10066857,105440.0,105430.0,1.72860237]
[1749373224741,0.10066857,105440.0,105430.0,1.73265115]
[1749373224930,0.10066857,105440.0,105430.0,1.61507095]
[1749373225135,0.10066857,105440.0,105430.0,1.73265115]
[1749373226848,0.10066857,105440.0,105430.0,1.37185115]
[1749373227143,0.10066857,105440.0,105430.0,1.73265115]
[1749373230345,0.42602087,105450.0,105440.0,0.1895934]
[1749373230545,0.42602087,105450.0,105440.0,1.08589219]
[1749373230546,0.54360107,105450.0,105440.0,1.08589219]
[1749373231255,0.54360107,105450.0,105440.0,0.72509219]
[1749373231546,0.54360107,105450.0,105440.0,1.08589219]
[1749373231749,0.54460107,105450.0,105440.0,1.08589219]
[1749373232150,0.54560107,105450.0,105440.0,1.08589219]
[1749373233147,0.54560107,105450.0,105440.0,1.20347239]
[1749373233351,0.54560107,105450.0,105440.0,1.32203849]
[1749373233648,0.54560107,105450.0,105440.0,1.17385616]
[1749373235749,0.54560107,105450.0,105440.0,0.81305616]
[1749373236047,0.54560107,105450.0,105440.0,1.17790494]
[1749373239755,0.54560107,105450.0,105440.0,0.81710494]
[1749373239955,0.54560107,105450.0,105440.0,1.17790494]
[1749373243056,0.54560107,105450.0,105440.0,0.81710494]
[1749373243251,0.54560107,105450.0,105440.0,1.17790494]
[1749373243555,0.54560107,105450.0,105440.0,1.08993884]
[1749373243754,0.54560107,105450.0,105440.0,1.26992117]
[1749373244158,0.51400107,105450.0,105440.0,1.26992117]
[1749373244455,0.51400107,105450.0,105440.0,1.24030505]
[1749373245549,0.51400107,105450.0,105440.0,1.27170505]
[1749373245764,0.51400107,105450.0,105440.0,1.41890137]
[1749373245765,0.06464177,105450.0,105440.0,1.41890137]
[1749373245956,0.22211707,105450.0,105440.0,1.27071904]
[1749373246158,0.10299989,105450.0,105440.0,1.47801335]
[1749373246547,0.37604073,105460.0,105440.0,1.47801335]
[1749373246753,0.54301293,105460.0,105450.0,0.93456329]
[1749373246958,0.54301293,105460.0,105450.0,1.32187975]
[1749373246959,0.51031293,105460.0,105450.0,1.32187975]
[1749373247159,0.51031293,105460.0,105450.0,1.17376431]
[1749373248357,0.50051293,105460.0,105450.0,1.17376431]
[1749373248558,0.50351293,105460.0,105450.0,1.17376431]
[1749373249158,0.50251293,105460.0,105450.0,1.17376431]
[1749373249358,0.50451293,105460.0,105450.0,1.17376431]
[1749373250558,0.47231293,105460.0,105450.0,1.17376431]
[1749373251960,0.35473273,105460.0,105450.0,1.17376431]
[1749373252158,0.02298173,105460.0,105450.0,1.60344431]
[1749373252458,0.21233913,105460.0,105450.0,1.6330674]
[1749373252659,0.21253913,105460.0,105450.0,1.6330674]
[1749373253659,0.33011933,105460.0,105450.0,1.6330674]
[1749373254160,0.33011933,105460.0,105450.0,1.75142669]
[1749373260254,0.33011933,105460.0,105450.0,1.60331125]
[1749373263766,0.33011933,105460.0,105450.0,1.61753125]
[1749373265572,0.33011933,105460.0,105450.0,1.62158003]
[1749373265868,0.33011933,105460.0,105450.0,1.07431983]
[1749373266174,0.33011933,105460.0,105450.0,1.62154003]
[1749373268277,0.33011933,105460.0,105450.0,1.26074003]
[1749373268668,0.02298173,105460.0,105450.0,1.50318074]
[1749373268974,0.21233903,105460.0,105450.0,1.50318074]
[1749373269176,0.21253903,105460.0,105450.0,1.50318074]
[1749373270069,0.21233903,105460.0,105450.0,1.50318074]
[1749373270269,0.21253903,105460.0,105450.0,1.50318074]
[1749373270776,0.02298173,105460.0,105450.0,1.62154003]
[1749373270971,0.0042,105460.0,105450.0,1.73912023]
[1749373271183,0.0042,105460.0,105450.0,1.62076094]
[1749373271469,0.004,105460.0,105450.0,1.76887638]
[1749373271684,0.0042,105460.0,105450.0,1.76887638]
[1749373273174,0.0042,105460.0,105450.0,1.65129618]
[1749373275982,0.0042,105460.0,105450.0,2.01209618]
[1749373277783,0.0042,105460.0,105450.0,2.11065618]
[1749373280078,0.1937574,105460.0,105450.0,1.58245618]
[1749373280285,0.1937574,105460.0,105450.0,2.11057618]
[1749373280481,0.1937574,105460.0,105450.0,1.96246074]